Cogmind - Beta 17 @@@ ROGUE MODE // 2026.07.11 @ 21:25:37 Player: TheSkyeDoctor Result: Destroyed by C-17 Slicer with Blade Saw Performance ------------- Evolutions (3) 1500 Regions Visited (6) 1200 Robots Destroyed (82) 410 Value Destroyed (2448) 2448 Prototype IDs (5) 100 Alien Tech Used (0) 0 Bonus (373) 373 TOTAL SCORE: 6031 Bonus ------- High Alert Combat Kills 280 Follower Combat Kills 93 Cogmind --------- Core Integrity 0/700 Matter 26/300 Energy 95/100 System Corruption 7% Temperature Cool (2) Movement Flying (37) Location -7/Factory Parts ------- > --- POWER (1) -------- (None) > --- PROPULSION (4) --- Armored Wheel Improved Cesium-ion Thruster Cooled VTOL Module > --- UTILITY (4) ------ Improved Signal Interpreter Advanced Targeting Computer Advanced Targeting Computer Core Analyzer > --- WEAPON (4) ------- Advanced Assault Cannon > --- INVENTORY (5) ---- High-capacity Battery (250) Power Maul Peak State ------------ > --- POWER ------------ Micro Nuclear Core > --- PROPULSION ------- Armored Huge Wheel Improved Cesium-ion Thruster Cooled VTOL Module > --- UTILITY ---------- Improved Signal Interpreter Improved Terrain Scanner Core Analyzer Armor Integrity Analyzer > --- WEAPON ----------- Advanced Assault Cannon Proton Missile Launcher Rocket Array Katana > --- INVENTORY -------- High-capacity Battery Advanced Targeting Computer Advanced Targeting Computer Rocket Array Power Maul [Rating: 53] Favorites ----------- Power Ion Engine Engine Ion Engine Power Core Micro Nuclear Core Propulsion Light Treads Treads Light Treads Wheel Armored Huge Wheel Flight Unit Cooled VTOL Module Utility Small Storage Unit Device Seismic Detector Storage Small Storage Unit Processor Armor Integrity Analyzer Protection Light Armor Plating Weapon Heavy Assault Rifle Energy Gun Beamcaster Ballistic Gun Heavy Assault Rifle Ballistic Cannon Advanced Assault Cannon Launcher Rocket Array Impact Weapon Hammer Slashing Weapon Katana Build | -11 -10 -10 -10 -9 -8 -7 ------- Run | Yrd Mat Min Exi Min Mat Fac Slots Evolved 6 | . . . . . 4 2 Power . | . . . . . . . Propulsion 2 | . . . . . 1 1 Utility 2 | . . . . . 1 1 Weapon 2 | . . . . . 2 . Parts Attached 56 | 7 1 5 . . 12 31 Power 5 | 1 . . . . 1 3 Engine 2 | 1 . . . . 1 . Core 3 | . . . . . . 3 Reactor . | . . . . . . . Propulsion 17 | 2 . 2 . . 4 9 Treads 7 | 2 . 2 . . 3 . Leg . | . . . . . . . Wheel 7 | . . . . . 1 6 Hover . | . . . . . . . Flight 3 | . . . . . . 3 Utility 11 | 2 . . . . 1 8 Device 4 | 1 . . . . 1 2 Storage 1 | 1 . . . . . . Processor 5 | . . . . . . 5 Hackware . | . . . . . . . Protection 1 | . . . . . . 1 Artifact . | . . . . . . . Weapon 23 | 2 1 3 . . 6 11 Energy Gun 6 | 1 . 2 . . 2 1 Energy Cannon . | . . . . . . . Ballistic Gun 7 | 1 1 1 . . 3 1 Ballistic Cannon 2 | . . . . . . 2 Launcher 5 | . . . . . . 5 Special Weapon . | . . . . . . . Impact Weapon 2 | . . . . . 1 1 Slashing Weapon 1 | . . . . . . 1 Piercing Weapon . | . . . . . . . Special Melee Weapon . | . . . . . . . Unidentified Prototypes 3 | . . . . . . 3 Parts Lost 30 | . 1 . . . 13 16 Power 4 | . . . . . 2 2 Propulsion 7 | . . . . . 4 3 Utility 6 | . . . . . 3 3 Weapon 13 | . 1 . . . 4 8 Highest Loss Streak 12 | . 1 . . . 12 5 To Critical Strikes . | . . . . . . . Average Backups 5 | 1 4 7 8 8 7 3 Power . | . 1 1 1 1 . . Propulsion . | . 1 1 1 1 . . Utility 2 | . 1 4 5 5 4 1 Weapon 1 | . . . 1 1 . 1 Tool/Special . | . . . . . . . Unused Backups 4 | . . 2 . . 1 1 Power 1 | . . 1 . . . . Propulsion . | . . . . . . . Utility 3 | . . 1 . . 1 1 Weapon . | . . . . . . . Tool/Special . | . . . . . . . Average Slot Usage (%) 84 | . 98 99 100 100 84 70 Engine 6 | . 14 13 14 14 8 . Core 2 | . . . . . . 6 Treads 13 | . 28 28 28 28 18 . Wheel 2 | . . . . . . 5 Flight 2 | . . . . . . 5 Device 10 | . 14 14 14 14 17 6 Storage 6 | . 14 14 14 14 8 . Processor 7 | . . . . . . 16 Protection 1 | . . . . . . 2 Energy Gun 8 | . 8 11 14 14 15 3 Ballistic Gun 10 | . 18 16 14 14 16 3 Launcher 4 | . . . . . . 9 Impact Weapon 1 | . . . . . . 3 Slashing Weapon 1 | . . . . . . 3 Peak Build Rating 53 | 7 7 13 13 13 24 53 Average Rating 22 | 5 6 11 13 13 18 34 On Entrance 7 | . 7 7 13 13 13 2 Avg Prop Armor Cover (%) 3 | . . . . . . 3 Naked Turns . | . . . . . . . Heaviest Build 30 | 15 15 19 19 19 27 30 Greatest Support 60 | 40 40 40 40 40 60 56 Greatest Overweight (x) 9 | . . . . . 1 9 Average Overweight (x) . | . . . . . . 1 Largest Inventory Capacity 8 | 8 8 8 8 8 8 5 Average Capacity 6 | 7 8 8 8 8 7 5 Most Carried 8 | 3 6 8 8 8 8 5 Average Carried 5 | 1 4 7 8 8 7 3 Final Capacity 8 | 8 8 8 8 8 5 5 Final Carried 8 | 3 6 8 8 8 5 2 Class Distribution -------------------- 31% | Scavenger-Mutant 27% | Mutant 26% | Scavenger-Gunner 14% | Gunner Dominant Class ---------------- Mutant | -10/Materials Scavenger-Mutant | -10/Mines Scavenger-Mutant | -10/Exiles Scavenger-Mutant | -9/Mines Scavenger-Gunner | -8/Materials Gunner | -7/Factory Resources | -11 -10 -10 -10 -9 -8 -7 ----------- Run | Yrd Mat Min Exi Min Mat Fac Matter Collected 1539 | 294 44 92 . . 295 814 Remotely . | . . . . . . . Salvage Created 2769 | 214 53 194 . . 751 1557 Parts 183 | 23 6 8 . . 38 108 Haulers Intercepted 2 | . . . . . . 2 Recyclers Shooed 2 | . . . . . 1 1 Parts Field Recycled . | . . . . . . . Retrieved Matter . | . . . . . . . Parts Self-Destructed . | . . . . . . . Prevented . | . . . . . . . Parts Restored . | . . . . . . . Kills | -11 -10 -10 -10 -9 -8 -7 ------- Run | Yrd Mat Min Exi Min Mat Fac Combat Hostiles Destroyed 49 | . 4 4 . . 12 29 Melee 5 | . . . . . . 5 Guns 23 | . 4 4 . . 11 4 Cannons 2 | . . . . . . 2 AOE 18 | . . . . . . 18 Classes Destroyed 15 | 3 1 2 . . 5 4 Worker 12 | 1 . . . . 2 9 Builder 7 | . . . . . . 7 Tunneler 6 | 6 . . . . . . Hauler 2 | . . . . . . 2 Recycler 4 | 1 . . . . . 3 Mechanic 1 | . . . . . 1 . Watcher 1 | . . . . . 1 . Swarmer 7 | . 4 . . . . 3 Cutter 1 | . . . . . . 1 Grunt 20 | . . 3 . . 2 15 Brawler 2 | . . . . . 1 1 Sentry 9 | . . 1 . . 4 4 Specialist 4 | . . . . . 4 . Hunter 1 | . . . . . 1 . Programmer 5 | . . . . . . 5 Best Kill Streak 8 | 3 4 2 . . 3 8 Combat Bots Only 4 | . 4 2 . . 3 4 Max Kills in Single Turn 8 | 1 1 1 . . 2 8 Gunslinging 1 | . . . . . 1 . Exploded 4 | . . . . . . 4 Melee 1 | . . . . . . 1 Uniques/NPCs Destroyed . | . . . . . . . Combat | -11 -10 -10 -10 -9 -8 -7 -------- Run | Yrd Mat Min Exi Min Mat Fac Hostile Shots Fired 503 | . 42 10 . . 84 367 Missed 211 | . 12 4 . . 24 171 Hits 292 | . 30 6 . . 60 196 Melee 2 | . . . . . 1 1 Projectile 290 | . 30 6 . . 59 195 AOE 2 | . . . . . . 2 Critical Strikes 5 | . . . . . 2 3 Part Disruptions 1 | . . . . . . 1 Damage Taken 4408 | . 252 81 . . 1388 2687 Core 1134 | . 16 23 . . 383 712 Absorbed by Shields . | . . . . . . . Core Remaining (%) 71 | 100 . . . 84 30 . Volleys Fired 94 | 10 10 10 . . 26 38 Largest 4 | 2 2 2 . . 4 3 Hottest 184 | 60 60 98 . . 184 130 Shots Fired 238 | 20 17 20 . . 102 79 Gun 183 | 20 17 20 . . 102 24 Cannon 12 | . . . . . . 12 Launcher 43 | . . . . . . 43 Special . | . . . . . . . Kinetic 114 | 10 13 15 . . 52 24 Thermal 67 | . . 5 . . 50 12 Explosive 25 | . . . . . . 25 Electromagnetic 32 | 10 4 . . . . 18 Robot Hit Streak 13 | 5 5 13 . . 9 7 Robot Miss Streak 5 | 3 5 1 . . 4 5 Penetration Max 1 | . . . . . 1 . Secondary Targets 3 | . . 1 . . 2 . Max Gunslinging Chain 1 | . . 1 . . 1 . Shots Hit Robots 162 | 11 8 16 . . 57 70 Core Hits 161 | 8 5 10 . . 21 117 Critical Kills . | . . . . . . . Critical Parts Destroyed . | . . . . . . . Critical Strikes 5 | . 1 . . . 3 1 Burn 4 | . . . . . 3 1 Corrupt 1 | . 1 . . . . . Melee Attacks 37 | . . . . . 3 34 Impact 6 | . . . . . 3 3 Slashing 31 | . . . . . . 31 Piercing . | . . . . . . . Sneak Attacks 8 | . . . . . 3 5 Combat Hostiles . | . . . . . . . Follow-up Attacks . | . . . . . . . Damage Inflicted 6246 | 139 73 208 . . 1262 4564 Guns 1762 | 139 73 208 . . 1051 291 Cannons 197 | . . . . . . 197 Explosions 3330 | . . . . . . 3330 Melee 952 | . . . . . 206 746 Ramming 5 | . . . . . 5 . Kinetic 1103 | 61 53 158 . . 439 392 Thermal 1058 | . . 50 . . 612 396 Explosive 2081 | . . . . . . 2081 Electromagnetic 1047 | 78 20 . . . . 949 Impact 206 | . . . . . 206 . Slashing 746 | . . . . . . 746 Piercing . | . . . . . . . Highest Corruption 7 | . . . . . 1 7 Average Corruption 3 | . . . . . 1 3 Corruption Purged 3 | . . . . . . 3 Corruption Blocked . | . . . . . . . Effects 10 | . . . . . . 10 Message Errors 2 | . . . . . . 2 Matter Fused 5 | . . . . . . 5 Heat Flow Errors 1 | . . . . . . 1 Data Loss (minor) 2 | . . . . . . 2 Overload Shots . | . . . . . . . Overflow Damage 329 | . . . . . 146 183 Projectiles . | . . . . . . . Explosions 109 | . . . . . . 109 Melee 220 | . . . . . 146 74 Knockbacks 3 | . . . . . 2 1 Impact 2 | . . . . . 2 . Kinetic 1 | . . . . . . 1 Secondary . | . . . . . . . Self-Inflicted Damage 326 | . . . . . . 326 Shots 16 | . . . . . . 16 Rammed 1 | . . . . . 1 . Targets Rammed 1 | . . . . . 1 . Kicked . | . . . . . . . Crushed . | . . . . . . . Highest Temperature 478 | . . 36 . . 478 245 Average Temperature 97 | . . 19 . . 139 68 Received Heat Transfer 906 | . . 39 . . 351 516 Effects 4 | . . . . . 4 . Damage (major) 4 | . . . . . 4 . Siege Activations . | . . . . . . . Martial Activations . | . . . . . . . Shielding Activations . | . . . . . . . Robots Disrupted . | . . . . . . . Combat Hostiles . | . . . . . . . Robots Corrupted 3 | . . . . . 3 . Combat Hostiles . | . . . . . . . Parts Fried 2 | . . . . . 2 . Impact Corruptions 6 | . . . . . 6 . Robots Melted 1 | . . . . . 1 . Combat Hostiles 1 | . . . . . 1 . Parts Melted 3 | . . . . . 3 . Heat Transferred 2000 | . . 111 . . 1480 409 Parts Sabotaged . | . . . . . . . Parts Stolen . | . . . . . . . Parts Stripped . | . . . . . . . Power Chain Reactions . | . . . . . . . Alert | -11 -10 -10 -10 -9 -8 -7 ------- Run | Yrd Mat Min Exi Min Mat Fac Maximum Alert Level 3 | . . . . . . 3 Low Security (%) 78 | 100 100 100 . 100 100 55 Level 1 3 | . . . . . . 7 Level 2 12 | . . . . . . 25 Level 3 5 | . . . . . . 12 Level 4 . | . . . . . . . Level 5 . | . . . . . . . High Security . | . . . . . . . Max Security . | . . . . . . . Peak Influence 876 | 10 115 58 . . 122 876 Initial 27 | . 6 25 . . . 27 Average 142 | 1 37 14 . . 34 272 Influence Increases 2238 | 40 135 170 . . 487 1406 Destroy 0b10 Robot/C 1040 | . 80 140 . . 240 580 Destroy 0b10 Robot/NC 170 | 40 . . . . 25 105 Destroy Leader 278 | . 10 20 . . 84 164 Allied During Kill 43 | . . 10 . . 33 . Successful Hack 15 | . . . . . 13 2 Disable Machine 165 | . . . . . 15 150 Destroy Structure 257 | . . . . . 2 255 Lose Combat Pursuer 270 | . 45 . . . 75 150 Influence Decreases 1362 | 30 80 233 2 . 427 590 Entered New Map 79 | . 4 40 2 . . 33 Time Decay 904 | 30 66 193 . . 218 397 Lost Part 300 | . 10 . . . 130 160 Lost Ally 79 | . . . . . 79 . Squads Dispatched 13 | . . . . . 4 9 Investigation . | . . . . . . . Extermination 3 | . . . . . . 3 Reinforcement 9 | . . . . . 4 5 Assault . | . . . . . . . Garrison 1 | . . . . . . 1 Intercept . | . . . . . . . Searches Triggered . | . . . . . . . Construction Impeded 1 | . . . . . . 1 Haulers Reinforced 2 | . . . . . . 2 Active Scanning Responses . | . . . . . . . Cargo Convoy Interrupts . | . . . . . . . Stealth | -11 -10 -10 -10 -9 -8 -7 --------- Run | Yrd Mat Min Exi Min Mat Fac Distress Signals 3 | . 1 . . . 2 . Communications Jammed . | . . . . . . . Distress Signals . | . . . . . . . Times Spotted 93 | . 7 9 . . 31 46 Peak Tracking Total 14 | . 7 3 . . 14 5 Tactical Retreats 10 | . 1 . . . 2 7 Traps | -11 -10 -10 -10 -9 -8 -7 ------- Run | Yrd Mat Min Exi Min Mat Fac Traps Triggered 7 | . 1 . . . 1 5 Indirectly 1 | . . . . . . 1 Trap Hack Attempts . | . . . . . . . Triggered . | . . . . . . . Disarmed . | . . . . . . . Reprogrammed . | . . . . . . . Reused . | . . . . . . . Traps Extracted . | . . . . . . . Installed . | . . . . . . . Triggered . | . . . . . . . Machines | -11 -10 -10 -10 -9 -8 -7 ---------- Run | Yrd Mat Min Exi Min Mat Fac Machines Disabled 11 | . . . . . 1 10 Max in Single Turn 4 | . . . . . 1 4 Garrison Access 2 | . . . . . . 2 Machines Repaired . | . . . . . . . Machines Dismantled . | . . . . . . . Machines Sabotaged . | . . . . . . . Overloaded Fab Kills . | . . . . . . . Hacking | -11 -10 -10 -10 -9 -8 -7 --------- Run | Yrd Mat Min Exi Min Mat Fac Machines Accessed 7 | . . . . . 2 5 Terminals 4 | . . . . . 2 2 Fabricators . | . . . . . . . Repair Stations . | . . . . . . . Recycling Units . | . . . . . . . Scanalyzers 1 | . . . . . . 1 Garrison Access 2 | . . . . . . 2 Total Hacks 13 | . . . . . 4 9 Successful 7 | . . . . . 3 4 Failed 5 | . . . . . 1 4 Catastrophic 2 | . . . . . . 2 Database Lockouts 1 | . . . . . . 1 Manual 6 | . . . . . 3 3 Terminals 7 | . . . . . 4 3 Fabricators . | . . . . . . . Repair Stations . | . . . . . . . Recycling Units . | . . . . . . . Scanalyzers 3 | . . . . . . 3 Garrison Access 3 | . . . . . . 3 Terminal Hacks 2 | . . . . . 2 . Prototype ID Bank 1 | . . . . . 1 . Level Access Points 1 | . . . . . 1 . Fabricator Hacks . | . . . . . . . Repair Station Hacks . | . . . . . . . Recycling Unit Hacks . | . . . . . . . Scanalyzer 2 | . . . . . . 2 Retrieve Study 2 | . . . . . . 2 Garrison Access Hacks 2 | . . . . . . 2 Seal Access 2 | . . . . . . 2 Unauthorized Hacks 1 | . . . . . 1 . Terminals 1 | . . . . . 1 . Botnet 1 | . . . . . 1 . Fabricators . | . . . . . . . Repair Stations . | . . . . . . . Recycling Units . | . . . . . . . Scanalyzers . | . . . . . . . Garrison Access . | . . . . . . . Data Cores Recovered . | . . . . . . . Used . | . . . . . . . Hacking Detections 3 | . . . . . . 3 Full Trace Events . | . . . . . . . Feedback Events . | . . . . . . . Feedback Blocked . | . . . . . . . Robot Schematics Acquired . | . . . . . . . Robots Built . | . . . . . . . Authchips . | . . . . . . . Time . | . . . . . . . Total Robot Build Rating . | . . . . . . . Part Schematics Acquired . | . . . . . . . Parts Built . | . . . . . . . Authchips . | . . . . . . . Time . | . . . . . . . Total Part Build Rating . | . . . . . . . Part Studies Acquired 2 | . . . . . . 2 Parts Repaired . | . . . . . . . Time . | . . . . . . . Parts Recycled . | . . . . . . . Recycled Matter . | . . . . . . . Retrieved Matter . | . . . . . . . Retrieved Components . | . . . . . . . Parts Scanalyzed . | . . . . . . . Part Schematics Acquired . | . . . . . . . Parts Damaged . | . . . . . . . Bothacking | -11 -10 -10 -10 -9 -8 -7 ------------ Run | Yrd Mat Min Exi Min Mat Fac Used RIF Installer . | . . . . . . . Robots Hacked . | . . . . . . . Non-combat . | . . . . . . . Combat . | . . . . . . . Robot Hacks Applied . | . . . . . . . Relay Couplers Released . | . . . . . . . Fabnet Peak Effective % . | . . . . . . . Robots Rewired . | . . . . . . . Allies Hacked . | . . . . . . . Hacks Repelled . | . . . . . . . Allies | -11 -10 -10 -10 -9 -8 -7 -------- Run | Yrd Mat Min Exi Min Mat Fac Total Allies 6 | . . 4 . 2 . . Largest Group 5 | . . 3 3 5 5 . Highest-Rated Group 92 | . . 40 40 92 92 . Highest-Rated Ally 31 | . . 31 16 31 31 . Total Orders . | . . . . . . . Ally Attacks 40 | . . 13 . . 27 . Total Damage 464 | . . 126 . . 338 . Kills 4 | . . 3 . . 1 . Allies Corrupted . | . . . . . . . Allies Melted . | . . . . . . . Intel | -11 -10 -10 -10 -9 -8 -7 ------- Run | Yrd Mat Min Exi Min Mat Fac Active Infowar (turns) 3501 | 118 260 758 362 68 485 1450 Terrain 1450 | . . . . . . 1450 Seismic 2051 | 118 260 758 362 68 485 . Robot Analysis Total . | . . . . . . . Derelict Logs Recovered 1 | . . 1 . . . . Drone Launches . | . . . . . . . Drone Recoveries . | . . . . . . . Exploration | -11 -10 -10 -10 -9 -8 -7 ------------- Run | Yrd Mat Min Exi Min Mat Fac Turns Passed 3888 | 206 260 758 362 68 534 1700 Spaces Moved 2249 | 105 142 443 227 43 297 992 Core 132 | 4 . . . . 37 91 Treads 1192 | 101 142 443 227 43 236 . Legs . | . . . . . . . Wheels 627 | . . . . . 24 603 Hover . | . . . . . . . Flight 298 | . . . . . . 298 Fastest Speed 37 | 50 160 160 160 160 50 37 Average Speed 149 | 155 160 160 160 160 140 143 Slowest Speed 500 | 160 160 160 160 160 160 500 Overloaded Moves . | . . . . . . . Propulsion Burnouts . | . . . . . . . Robots Hopped . | . . . . . . . Potential Cave-ins . | . . . . . . . Cave-ins Triggered . | . . . . . . . Exploration Rate (%) 35 | 5 28 61 61 15 38 37 Regions Visited 6 Branch Regions 3 Pre-discovered Areas 1 | . . 1 . . . . Known Exits Taken 1 | . . . . . 1 . Unknown Exits Taken 5 | 1 1 1 1 1 . . Scrap Searched 1 | . . 1 . . . . Spaces Dug 11 | . . . . . . 11 Terrain Destroyed 294 | . . . . . . 294 Melee 11 | . . . . . . 11 Projectile 1 | . . . . . . 1 AOE 282 | . . . . . . 282 Terrain Rammed . | . . . . . . . Walls Destroyed . | . . . . . . . Machines Disabled . | . . . . . . . Actions | -11 -10 -10 -10 -9 -8 -7 --------- Run | Yrd Mat Min Exi Min Mat Fac Total 2504 | 124 158 476 226 42 347 1131 Wait 23 | . 3 5 . . . 15 Move 2243 | 104 141 442 226 42 296 992 Hop . | . . . . . . . Pick Up 20 | 3 3 4 . . 3 7 Fast Attach 35 | 7 1 4 . . 3 20 Attach 17 | . . . . . 5 12 Detach 7 | . . 2 . . . 5 Swap 8 | . . 2 . . 5 1 Drop 19 | . . 7 . . 5 7 Fire 94 | 10 10 10 . . 26 38 Melee 37 | . . . . . 3 34 Ram . | . . . . . . . Kick . | . . . . . . . Crush 1 | . . . . . 1 . Escape Stasis . | . . . . . . . Rewire . | . . . . . . . Trap . | . . . . . . . Miscellaneous . | . . . . . . . Route ------- -11/Scrapyard -10/Materials -10/Mines (discovered 2 exits: [*Mat] / *Exi) -10/Exiles -9/Mines -8/Materials (discovered 3 exits: *Fac x3) -7/Factory (discovered 2 exits: [*Fac] / *Low) History --------- Turn | Location | Event 21 | -11/Scrapyard | Discovered new exit (range 16) 207 | -11/Scrapyard | Entered Materials 303 | -10/Materials | Build established: Mutant 399 | -10/Materials | Discovered new exit (range 16) 467 | -10/Materials | Entered Mines 473 | -10/Mines | Met a Derelict bent on vengeance 476 | -10/Mines | Escorted by a lone wolf Derelict 496 | -10/Mines | Learned location of Storage (-9) 517 | -10/Mines | Discovered new exit (range 16) 797 | -10/Mines | Assisted by bots powering up and referring to "LRC-V3" 859 | -10/Mines | Build established: Scavenger-Mutant 1126 | -10/Mines | Learned Materials emergency access door positions 1209 | -10/Mines | Deemed a non-threat by the Exiles lab entrance 1211 | -10/Mines | Discovered new exit (range 5) 1225 | -10/Mines | Entered Exiles 1225 | -10/Exiles | Found Exiles lab abandoned 1225 | -10/Exiles | Accompanied by 3 allies 1565 | -10/Exiles | Discovered new exit (range 15) 1587 | -10/Exiles | Entered Mines 1587 | -9/Mines | Accompanied by 3 allies 1623 | -9/Mines | Discovered new exit (range 8) 1655 | -9/Mines | Entered Materials 1655 | -8/Materials | Accompanied by 5 allies 1655 | -8/Materials | Evolved 4 slots: Propulsion x1, Utility x1, Weapon x2 1660 | -8/Materials | Led the pair of lost Derelicts to an unsafe place 1943 | -8/Materials | Identified exit to Factory 1954 | -8/Materials | Build established: Scavenger-Gunner 2171 | -8/Materials | Core integrity fell below 50% 2189 | -8/Materials | Entered Factory 2189 | -7/Factory | Evolved 2 slots: Propulsion x1, Utility x1 2201 | -7/Factory | Lost 12 parts (1p4n3u4w) 2890 | -7/Factory | Build established: Gunner 2932 | -7/Factory | Central database locked down 3106 | -7/Factory | Found Prototype Launcher 3106 | -7/Factory | Identified Rocket Array 3109 | -7/Factory | Found Rocket Array 3114 | -7/Factory | Found Rocket Array 3172 | -7/Factory | Garrison activated, responded to threat 3175 | -7/Factory | Core integrity fell below 50% 3448 | -7/Factory | Discovered new exit (range 6) 3455 | -7/Factory | Identified exit to Lower Caves 3737 | -7/Factory | Lost 5 parts (1p1n1u2w) 3766 | -7/Factory | Core integrity fell below 20% 3769 | -7/Factory | Discovered new exit (range 15) 3811 | -7/Factory | Lost 3 parts (1u2w) 3889 | -7/Factory | Destroyed by C-17 Slicer with Blade Saw Last Messages --------------- 03776_ G-47 Trooper destroyed. 03779_ K-01 Serf collects debris. 03780_ Rocket Array destroyed. 03780_ Adv. Assault Cannon destroyed. 03783_ K-01 Serf collects debris. 03783_ K-01 Serf destroyed. 03784_ Acquired 4 matter. 03785_ The unstable cave ceiling collapses. 03795_ System corrupted: Matter fused (-5). 03811_ System corrupted: Component data lost. 03817_ Acquired Adv. Assault Cannon. 03823_ R-06 Scavenger collects Gravmag System. 03826_ ICF4P4TG 03849_ System corrupted: Component data lost. 03879_ ALERT: Suspicious intruders detected, dispatching Cutter reinforcements to area. 03882_ Katana destroyed. 03882_ System corrupted by crushing effect (+1). 03882_ Knocked back. 03889_ C-17 Slicer destroyed. Map ----- +----------------------------------------------------+ | ##??# """ #?????????????# #? ??????????? | | ##### """ #?????????????# #? ??????????? | | ## """ #?????????????# #?? ???????????? | | ]## #?????????????# #?? ???????????? | | [ ## ############### #??# #???????????? | | !## ## # #??# #???????????? | | ## ## # #??# #???????????? | | "" ## # #???# #????????????? | | ######### # #??? ????????????? | | #???????# # #???# #????????????? | | #???????# # #???# #????????????? | | ######?????# # #???# ##???????????? | | ####### + #####+"#######?????? | | + # # #?????? | | #### # # #?????? | | ### ### #??# # # #?????? | | #?# #?# #??# # # #?????? | | ??# #?# #??############## # #?????? | | ###+###+###? # #?????? | | # + #?????? | | ] ! + !! # #?????? | | # !! # #?????? | | # !! # #?????? | | # % *##### #?????? | | #??""" """ /c#???# #?????? | | #? ??? """ @#???######+#######?????? | | #????? """ #??????????????????????? | | #??? ??????????????????????? | | """ """ ####??????????????????????? | | # ?"" """ ??????????????????????????? | | #????? """ ???????????????????????????? | | ####?????? ???????????????????????????? | | ??????? """ ????????????????????????????? | | ????" """ ????????????????????????????? | | ??????""?????????????????????????????? | | ???????? ?????????????????????????????? | | ??????????????????????????????????????? | | ########???????????????????????????????????????? | | #????#?????????????????????????????????????????? | | #??????????????????????????????????????????????? | | #??????????????????????????????????????????????? | | #??#???????????????????????????????????????????? | | ##?????????????????????????????????????????????? | | ##?????????????????????????????????????????????? | | #??????????????????????????????????????????????? | | #????#?????????????????????????????????????????? | | #??????????????????????????????????????????????? | | ? #??????????????????????????????????????????????? | | ? ??????????????????????????????????????????????? | | ?????????????????????????????????????????????????? | +----------------------------------------------------+ Best States ------------- Heat Dissipation 45 Energy Generation 16 Energy Capacity 250 Matter Stores 300 Matter Capacity 300 Sight Range 16 Terrain Scan Range 16 Terrain Scan Density 10 Armor Coverage 150 Evasion (%) 62 Targeting Accuracy 16 Core Analysis 6 Armor Integrity Analysis 30 Recoil Reduction 3 Item Schematics ----------------- None Robot Schematics ------------------ None Fabricated ------------ Nothing Repaired ---------- Nothing Studied --------- Xenon Bombardment Thruster | -7/Factory | Hacked Mic. Nuclear Core | -7/Factory | Hacked Alien Tech Used ----------------- None Achievements -------------- None Challenges ------------ None Game ------ Seed ExplosiveTargetingSplitter Manual? 0 Play Time 00:23:28 Cumulative 117.9 hours Start 2026.07.11 @ 21:03:55 End 2026.07.11 @ 21:25:37 Sessions 1 Manual Loads 0 Difficulty Rogue Special Mode None Game No. 251 Rogue 251 Adventurer 0 Explorer 0 Win Type - Total 0 Types 0/0/0/0/0/0/0/0/0/0 Lore% 50 Gallery% 51 Achievement% 41 Wizard Run 0 Options --------- Layout 1 ASCII 0 Keyboard 1 Movement Arrows Keybinds 0 Fullscreen 2 Font 24/Smallcaps Map View 50x35 Zoom Use 0% Tactical HUD 1 Map Filters NONE Filters NONE Steam 1 RUN: ab57cdf2-0f1f-4ff8-a825-760f32e1b101